[Event "FIDE Open Sachove Univerzity QCC"]
[Site "Ceske Budejovice"]
[Date "2020.07.09"]
[Round "9.20"]
[White "Dudkova, Josefina"]
[Black "Straka, Zdenek"]
[Result "0-1"]
[ECO "C01"]
[WhiteElo "1447"]
[BlackElo "1812"]
[Annotator "NA"]
[PlyCount "98"]
[EventDate "2020.07.01"]
[EventType "swiss"]
[EventCountry "CZE"]
[SourceTitle "playchess.com"]
[Source "ChessBase"]
[SourceQuality "1"]
[TimeControl "40/5400+30:1800+30"]

1. e4 {[%emt 0:00:00]} e6 {[%emt 0:07:31]} 2. d4 {[%emt 0:00:00]} d5 {[%emt 0:00:30]} 3. exd5 {[%emt 0:00:00]} exd5 {[%emt 0:00:00]} 4. Nf3 {[%emt 0:00:05]} Nf6 {[%emt 0:00:00]} 5. Bd3 {[%emt 0:00:17]} c5 {[%emt 0:00:18]} 6. O-O {[%emt 0:01:04] C01: French: Exchange Variation.} Be7 {[%emt 0:01:19]} 7. Re1 {[%emt 0:06:25]} O-O {[%emt 0:00:07]} 8. Bf4 {[%emt 0:02:39]} Nc6 {[%emt 0:00:44] [#]} 9. dxc5 $146 {[%emt 0:07:22]} ({Predecessor:} 9. c3 Bg4 10. Be2 Qb6 11. Qb3 Rfe8 12. Nbd2 Bxf3 13. Qxb6 axb6 14. Nxf3 cxd4 15. Nxd4 Nxd4 16. cxd4 Bb4 17. a3 Bxe1 18. Rxe1 {0-1 (30) Mattersberger,M (1680)-Konecny,S (1876) Austria 2019}) 9... Bxc5 {[%emt 0:01:39]} 10. h3 {[%emt 0:00:43]} Qb6 {[%emt 0:01:42]} 11. Be3 {[%emt 0:13:06]} Bxe3 {[%emt 0:00:38]} 12. Rxe3 {[%emt 0:01:09]} Qxb2 {[%emt 0:00:11]} 13. Nbd2 {[%emt 0:02:05]} Qb6 {[%emt 0:01:53]} 14. a3 {[%emt 0:07:23]} Bd7 {[%emt 0:04:18]} 15. Nb3 {[%emt 0:03:03]} Rfe8 {[%emt 0:01:03]} 16. Rxe8+ {[%emt 0:01:49]} Rxe8 {[%emt 0:00:07]} 17. Rb1 {[%emt 0:08:30]} Qc7 {[%emt 0:00:19]} 18. Nc5 {[%emt 0:04:16]} b6 {[%emt 0:00:24]} 19. Nxd7 {[%emt 0:01:43]} Qxd7 {[%emt 0:00:18]} 20. Bb5 {[%emt 0:01:55]} Re4 $11 {[%emt 0:04:39]} 21. c4 {[%emt 0:07:46]} d4 {[%emt 0:05:02]} 22. Qa4 {[%emt 0:03:24]} Re6 {[%emt 0:03:58]} 23. Rd1 {[%emt 0:03:51]} d3 {[%emt 0:03:19]} 24. Bxc6 {[%emt 0:04:24]} Qxc6 {[%emt 0:00:38]} 25. Qxc6 {[%emt 0:00:16]} Rxc6 {[%emt 0:00:02]} 26. Rxd3 {[%emt 0:00:08]} Kf8 {[%emt 0:00:35]} 27. Ne5 {[%emt 0:02:20]} Rc7 {[%emt 0:02:09]} 28. Rd4 {[%emt 0:01:44]} Ke7 {[%emt 0:00:29]} 29. g4 {[%emt 0:02:25]} Ne8 {[%emt 0:05:24]} 30. Nf3 {[%emt 0:02:33]} Nd6 {[%emt 0:01:39]} 31. Nd2 {[%emt 0:00:32]} g5 {[%emt 0:02:13]} 32. f4 {[%emt 0:01:57]} h6 {[%emt 0:01:50]} 33. Kg2 {[%emt 0:00:59]} Rc5 {[%emt 0:03:40]} 34. f5 {[%emt 0:02:58]} Ra5 {[%emt 0:00:37]} 35. Rd3 {[%emt 0:00:27]} Ra4 {[%emt 0:01:55]} 36. Rc3 {[%emt 0:00:45]} Ra5 {[%emt 0:04:27]} 37. Kf3 {[%emt 0:01:34]} Kd7 {[%emt 0:02:57]} 38. Rd3 {[%emt 0:01:34]} Kc6 {[%emt 0:03:32]} 39. Rc3 {[%emt 0:01:10]} Re5 {[%emt 0:00:52]} 40. Rc1 {[%emt 0:01:07]} Kb7 {[%emt 0:00:57]} 41. a4 {[%emt 0:30:53]} Kc6 {[%emt 0:34:02]} 42. Nb3 {[%emt 0:01:32]} Nb7 {[%emt 0:01:14]} 43. Rd1 {[%emt 0:01:31]} Na5 {[%emt 0:02:38]} 44. Nd4+ {[%emt 0:00:54]} Kc5 {[%emt 0:01:30]} 45. Nb5 {[%emt 0:00:41]} Nxc4 {[%emt 0:07:48]} 46. Nxa7 {[%emt 0:00:48]} Re3+ {[%emt 0:05:55]} 47. Kg2 {[%emt 0:00:33]} Re7 {[%emt 0:00:30]} 48. Ra1 {[%emt 0:00:57]} Rxa7 {[%emt 0:00:09]} 49. Kf3 {[%emt 0:00:36]} b5 {[%emt 0:00:12]} 0-1

[Event "FIDE Open Sachove Univerzity QCC"]
[Site "Ceske Budejovice"]
[Date "2020.07.09"]
[Round "9.21"]
[White "Stary, Vojtech"]
[Black "Valasek, Jakub"]
[Result "1/2-1/2"]
[ECO "C45"]
[WhiteElo "1422"]
[BlackElo "1688"]
[Annotator "NA"]
[PlyCount "57"]
[EventDate "2020.07.01"]
[EventType "swiss"]
[EventCountry "CZE"]
[SourceTitle "playchess.com"]
[Source "ChessBase"]
[SourceQuality "1"]
[TimeControl "40/5400+30:1800+30"]

1. e4 {[%emt 0:00:00]} e5 {[%emt 0:00:00]} 2. Nf3 {[%emt 0:00:00]} Nc6 {[%emt 0:00:04]} 3. d4 {[%emt 0:00:00]} exd4 {[%emt 0:00:25]} 4. Nxd4 {[%emt 0:00:00]} Bc5 {[%emt 0:00:55]} 5. Be3 {[%emt 0:00:00]} Qf6 {[%emt 0:01:09]} 6. c3 {[%emt 0:00:19]} Nge7 {[%emt 0:01:07]} 7. Qf3 {[%emt 0:01:36]} Qxf3 {[%emt 0:01:49]} 8. gxf3 {[%emt 0:00:08]} Bb6 {[%emt 0:01:55]} 9. Nd2 {[%emt 0:03:56]} O-O {[%emt 0:01:02]} 10. O-O-O {[%emt 0:00:58]} d5 {[%emt 0:02:46]} 11. Rg1 {[%emt 0:03:52]} Kh8 {[%emt 0:00:51]} 12. h4 {[%emt 0:02:38]} dxe4 {[%emt 0:02:11]} 13. fxe4 {[%emt 0:02:29]} f5 {[%emt 0:01:54]} 14. Nxc6 {[%emt 0:02:11]} Nxc6 {[%emt 0:00:45]} 15. Bh3 {[%emt 0:08:05]} fxe4 {[%emt 0:04:23]} 16. Bxc8 {[%emt 0:02:22]} Raxc8 {[%emt 0:00:39]} 17. Bxb6 {[%emt 0:02:17]} axb6 {[%emt 0:00:44]} 18. Nxe4 {[%emt 0:00:59]} Rce8 {[%emt 0:06:13]} 19. Ng5 {[%emt 0:02:50]} h6 {[%emt 0:03:55]} 20. Nh3 {[%emt 0:02:19]} Rf3 {[%emt 0:04:44]} 21. Rg3 {[%emt 0:01:06]} Rxg3 {[%emt 0:01:51]} 22. fxg3 {[%emt 0:00:01]} Ne5 {[%emt 0:07:04]} 23. Nf4 {[%emt 0:01:16]} g5 {[%emt 0:05:04]} 24. hxg5 {[%emt 0:06:37]} hxg5 {[%emt 0:00:35]} 25. Nd3 {[%emt 0:00:43]} Nxd3+ {[%emt 0:02:06]} 26. Rxd3 {[%emt 0:00:02]} Re7 {[%emt 0:04:08]} 27. Kc2 {[%emt 0:03:00]} Kg7 {[%emt 0:01:15]} 28. Kd2 {[%emt 0:02:23]} Kg6 {[%emt 0:01:39]} 29. g4 {[%emt 0:00:45]} 1/2-1/2

[Event "FIDE Open Sachove Univerzity QCC"]
[Site "Ceske Budejovice"]
[Date "2020.07.10"]
[Round "9.22"]
[White "Veselsky, Jan"]
[Black "Gorej, Jan"]
[Result "1-0"]
[ECO "D06"]
[WhiteElo "1580"]
[BlackElo "1247"]
[Annotator "NA RC"]
[PlyCount "47"]
[EventDate "2020.07.01"]
[EventType "swiss"]
[EventCountry "CZE"]
[TimeControl "40/5400+30:1800+30"]

1. d4 {[%emt 0:00:00]} d5 {[%emt 0:02:47]} 2. c4 {[%emt 0:00:00]} Nf6 {[%emt 0:00:29]} 3. cxd5 {[%emt 0:00:00]} Qxd5 {[%emt 0:00:50]} 4. Nc3 {[%emt 0:00:00]} Qd8 {[%emt 0:00:42]} 5. e4 {[%emt 0:00:16]} Bg4 {[%emt 0:00:41]} 6. f3 {[%emt 0:00:20]} Bh5 {[%emt 0:00:11]} 7. Bc4 {[%emt 0:01:05]} e6 {[%emt 0:00:28]} 8. Qb3 {[%emt 0:00:54]} b6 {[%emt 0:02:30]} 9. Nge2 {[%emt 0:02:50]} Be7 {[%emt 0:00:59]} 10. Be3 {[%emt 0:04:33]} O-O {[%emt 0:02:36]} 11. O-O {[%emt 0:06:30]} a6 {[%emt 0:02:44]} 12. e5 {[%emt 0:08:38]} b5 {[%emt 0:04:25]} 13. exf6 {[%emt 0:06:42]} Bd6 {[%emt 0:04:19]} 14. fxg7 {[%emt 0:04:26]} Kxg7 {[%emt 0:01:00]} 15. Bd3 {[%emt 0:03:07]} Qh4 {[%emt 0:02:45]} 16. g3 {[%emt 0:02:09]} Qf6 {[%emt 0:03:06]} 17. Ne4 {[%emt 0:01:46]} Qe7 {[%emt 0:02:52]} 18. Nxd6 {[%emt 0:00:44]} cxd6 {[%emt 0:00:27]} 19. Rac1 {[%emt 0:01:55]} Ra7 {[%emt 0:00:52]} 20. d5 {[%emt 0:00:56]} Kh8 {[%emt 0:02:20]} 21. Nf4 {[%emt 0:09:22]} Bg6 {[%emt 0:01:02]} 22. dxe6 {[%emt 0:01:06]} Bxd3 {[%emt 0:01:57]} 23. Qxd3 {[%emt 0:01:09]} fxe6 {[%emt 0:01:01]} 24. Qd4+ {[%emt 0:01:12]} 1-0

[Event "FIDE Open Sachove Univerzity QCC"]
[Site "Ceske Budejovice"]
[Date "2020.07.10"]
[Round "9.23"]
[White "Kaucky, Jaroslav"]
[Black "Havelkova, Beata"]
[Result "0-1"]
[ECO "A03"]
[WhiteElo "1573"]
[BlackElo "1394"]
[Annotator "NA RC"]
[PlyCount "96"]
[EventDate "2020.07.01"]
[EventType "swiss"]
[EventCountry "CZE"]
[TimeControl "40/5400+30:1800+30"]

1. d4 {[%emt 0:00:00]} Nf6 {[%emt 0:00:00]} 2. f4 {[%emt 0:00:00]} d5 {[%emt 0:01:21]} 3. Nf3 {[%emt 0:00:00]} c5 {[%emt 0:01:41]} 4. e3 {[%emt 0:00:00]} Nc6 {[%emt 0:02:11]} 5. c3 {[%emt 0:00:29]} Bg4 {[%emt 0:02:13]} 6. h3 {[%emt 0:00:03]} Bxf3 {[%emt 0:00:36]} 7. Qxf3 {[%emt 0:00:16]} e6 {[%emt 0:01:31]} 8. Nd2 {[%emt 0:01:25]} Be7 {[%emt 0:03:11]} 9. Bb5 {[%emt 0:00:52]} Qb6 {[%emt 0:02:42]} 10. Bxc6+ {[%emt 0:01:30]} Qxc6 {[%emt 0:02:14]} 11. Qf2 {[%emt 0:01:59]} b5 {[%emt 0:04:33]} 12. g4 {[%emt 0:00:16]} b4 {[%emt 0:07:24]} 13. g5 {[%emt 0:00:50]} Nd7 {[%emt 0:02:00]} 14. Nf3 {[%emt 0:00:55]} f6 {[%emt 0:04:15]} 15. h4 {[%emt 0:00:28]} h5 {[%emt 0:05:32]} 16. Qc2 {[%emt 0:00:07]} bxc3 {[%emt 0:07:09]} 17. Qxc3 {[%emt 0:06:07]} c4 {[%emt 0:09:13]} 18. Bd2 {[%emt 0:00:54]} Kf7 {[%emt 0:04:54]} 19. gxf6 {[%emt 0:02:11]} gxf6 {[%emt 0:00:36]} 20. Rg1 {[%emt 0:00:29]} Rag8 {[%emt 0:03:16]} 21. Kf2 {[%emt 0:00:24]} Qc8 {[%emt 0:03:54]} 22. Qc2 {[%emt 0:01:41]} Rh6 {[%emt 0:02:54]} 23. Rxg8 {[%emt 0:03:40]} Qxg8 {[%emt 0:00:18]} 24. Rg1 {[%emt 0:00:04]} Rg6 {[%emt 0:00:39]} 25. f5 {[%emt 0:03:16]} Rxg1 {[%emt 0:02:52]} 26. fxe6+ {[%emt 0:01:37]} Kxe6 {[%emt 0:00:22]} 27. Nxg1 {[%emt 0:00:09]} Bd6 {[%emt 0:01:48]} 28. Ne2 {[%emt 0:00:55]} Qg4 {[%emt 0:01:51]} 29. Nf4+ {[%emt 0:01:54]} Bxf4 {[%emt 0:00:41]} 30. exf4 {[%emt 0:00:06]} Qxh4+ {[%emt 0:00:40]} 31. Kf1 {[%emt 0:02:20]} Qh3+ {[%emt 0:01:57]} 32. Kf2 {[%emt 0:01:38]} Qh2+ {[%emt 0:01:41]} 33. Kf3 {[%emt 0:04:04]} f5 {[%emt 0:00:28]} 34. Qd1 {[%emt 0:02:58]} Nf6 {[%emt 0:03:13]} 35. Qe2+ {[%emt 0:00:11]} Qxe2+ {[%emt 0:00:23]} 36. Kxe2 {[%emt 0:00:16]} h4 {[%emt 0:04:42]} 37. Kf3 {[%emt 0:02:15]} h3 {[%emt 0:00:22]} 38. Be3 {[%emt 0:01:22]} Ng4 {[%emt 0:02:34]} 39. Bd2 {[%emt 0:04:10]} Kd6 {[%emt 0:00:52]} 40. Kg3 {[%emt 0:03:59]} h2 {[%emt 0:00:12]} 41. Kg2 {[%emt 0:30:35]} Kc6 {[%emt 0:30:17]} 42. Be1 {[%emt 0:01:01]} Kb5 {[%emt 0:00:19]} 43. Bg3 {[%emt 0:00:28]} a5 {[%emt 0:01:40]} 44. Bxh2 {[%emt 0:00:30]} Nxh2 {[%emt 0:00:03]} 45. Kxh2 {[%emt 0:00:12]} c3 {[%emt 0:00:17]} 46. bxc3 {[%emt 0:00:57]} Kc4 {[%emt 0:00:18]} 47. Kg3 {[%emt 0:00:27]} Kxc3 {[%emt 0:00:30]} 48. Kh4 {[%emt 0:00:12]} Kxd4 {[%emt 0:00:00]} 0-1

[Event "FIDE Open Sachove Univerzity QCC"]
[Site "Ceske Budejovice"]
[Date "2020.07.09"]
[Round "9.24"]
[White "Barta, David"]
[Black "Dobsa, Emma"]
[Result "0-1"]
[ECO "D11"]
[WhiteElo "1541"]
[BlackElo "1345"]
[Annotator "NA"]
[PlyCount "63"]
[EventDate "2020.07.01"]
[EventType "swiss"]
[EventCountry "CZE"]
[SourceTitle "playchess.com"]
[Source "ChessBase"]
[SourceQuality "1"]
[TimeControl "40/5400+30:1800+30"]

1. Nf3 {[%emt 0:00:00]} d5 {[%emt 0:00:17]} 2. g3 {[%emt 0:00:04]} Nf6 {[%emt 0:00:28]} 3. Bg2 {[%emt 0:00:06]} c6 {[%emt 0:03:42]} 4. O-O {[%emt 0:00:26]} Bf5 {[%emt 0:00:30]} 5. d4 {[%emt 0:02:53]} h6 {[%emt 0:01:21]} 6. Nbd2 {[%emt 0:01:08]} e6 {[%emt 0:00:33]} 7. c4 {[%emt 0:01:08]} Nbd7 {[%emt 0:01:03]} 8. cxd5 {[%emt 0:01:34]} cxd5 {[%emt 0:01:08]} 9. b3 {[%emt 0:01:18]} Rc8 {[%emt 0:06:22]} 10. a4 {[%emt 0:01:41]} Bc2 {[%emt 0:01:13]} 11. Qe1 {[%emt 0:00:05]} Bb4 {[%emt 0:00:18]} 12. Ba3 {[%emt 0:00:09]} Bxa3 {[%emt 0:03:20]} 13. Rxa3 {[%emt 0:00:06]} O-O {[%emt 0:00:08]} 14. a5 {[%emt 0:02:15]} Qe7 {[%emt 0:03:18]} 15. Qa1 {[%emt 0:03:49]} Ne4 {[%emt 0:07:24]} 16. Nxe4 {[%emt 0:01:06]} dxe4 {[%emt 0:00:34]} 17. Nd2 {[%emt 0:01:13]} Nf6 {[%emt 0:01:18]} 18. Rc1 {[%emt 0:00:45]} Qb4 {[%emt 0:01:09]} 19. Qb2 {[%emt 0:05:41]} Qxd2 {[%emt 0:01:48]} 20. Ra2 {[%emt 0:01:16]} Qxe2 {[%emt 0:00:44]} 21. Rxc2 {[%emt 0:03:10]} Qd1+ {[%emt 0:00:33]} 22. Bf1 {[%emt 0:00:24]} Rxc2 {[%emt 0:00:24]} 23. Qxc2 {[%emt 0:00:02]} Qxd4 {[%emt 0:00:07]} 24. Qc7 {[%emt 0:01:35]} Qb4 {[%emt 0:00:56]} 25. Bc4 {[%emt 0:02:08]} Nd5 {[%emt 0:03:42]} 26. Qe5 {[%emt 0:04:39]} Rd8 {[%emt 0:02:44]} 27. Qa1 {[%emt 0:15:25]} Nc3 {[%emt 0:02:03]} 28. Rc2 {[%emt 0:02:00]} Rd1+ {[%emt 0:00:58]} 29. Qxd1 {[%emt 0:00:26]} Nxd1 {[%emt 0:00:12]} 30. a6 {[%emt 0:01:48]} b5 {[%emt 0:00:37]} 31. h3 {[%emt 0:01:38]} bxc4 {[%emt 0:00:52]} 32. Rxc4 {[%emt 0:00:03]} 0-1

[Event "FIDE Open Sachove Univerzity QCC"]
[Site "Ceske Budejovice"]
[Date "2020.07.10"]
[Round "9.25"]
[White "Kral, Ladislav"]
[Black "Policar, Martin"]
[Result "1-0"]
[ECO "C29"]
[WhiteElo "1493"]
[BlackElo "1258"]
[Annotator "NA RC"]
[PlyCount "63"]
[EventDate "2020.07.01"]
[EventType "swiss"]
[EventCountry "CZE"]
[TimeControl "40/5400+30:1800+30"]

1. e4 {[%emt 0:00:00]} Nf6 {[%emt 0:00:00]} 2. Nc3 {[%emt 0:00:06]} e5 {[%emt 0:00:19]} 3. f4 {[%emt 0:00:14]} d5 {[%emt 0:00:41]} 4. fxe5 {[%emt 0:00:10]} Nxe4 {[%emt 0:00:47]} 5. Nf3 {[%emt 0:00:34]} Bg4 {[%emt 0:00:59]} 6. Qe2 {[%emt 0:12:57]} Nxc3 {[%emt 1:03:38]} 7. dxc3 {[%emt 0:37:22]} Nc6 {[%emt 0:00:30]} 8. Bf4 {[%emt 0:00:30]} Bc5 {[%emt 0:00:30]} 9. O-O-O {[%emt 0:00:30]} O-O {[%emt 0:00:30]} 10. h3 {[%emt 0:00:30]} Bxf3 {[%emt 0:00:30]} 11. gxf3 {[%emt 0:00:30]} Re8 {[%emt 0:00:30]} 12. Qb5 {[%emt 0:00:30]} Qh4 {[%emt 0:00:30]} 13. Bd2 {[%emt 0:00:30]} Bb6 {[%emt 0:00:30]} 14. f4 {[%emt 0:00:30]} Rad8 {[%emt 0:00:30]} 15. Qe2 {[%emt 0:00:30]} f6 {[%emt 0:00:30]} 16. e6 {[%emt 0:06:46]} Qf2 {[%emt 0:05:51]} 17. Qxf2 {[%emt 0:04:19]} Bxf2 {[%emt 0:03:52]} 18. f5 {[%emt 0:00:16]} g6 {[%emt 0:00:53]} 19. Rh2 {[%emt 0:01:06]} Bh4 {[%emt 0:01:56]} 20. Rg2 {[%emt 0:00:28]} Ne7 {[%emt 0:00:59]} 21. Bd3 {[%emt 0:03:22]} Kg7 {[%emt 0:03:56]} 22. fxg6 {[%emt 0:02:48]} Nxg6 {[%emt 0:01:08]} 23. Rdg1 {[%emt 0:07:41]} Rxe6 {[%emt 0:03:00]} 24. Bxg6 {[%emt 0:00:54]} hxg6 {[%emt 0:00:54]} 25. Rxg6+ {[%emt 0:00:27]} Kf8 {[%emt 0:01:48]} 26. Rg8+ {[%emt 0:02:23]} Ke7 {[%emt 0:01:18]} 27. R1g7+ {[%emt 0:00:23]} Kd6 {[%emt 0:00:12]} 28. Rxd8+ {[%emt 0:00:25]} Kc6 {[%emt 0:00:20]} 29. Rdd7 {[%emt 0:01:32]} Bg5 {[%emt 0:00:38]} 30. Rxc7+ {[%emt 0:00:29]} Kd6 {[%emt 0:00:10]} 31. Bxg5 {[%emt 0:03:10]} fxg5 {[%emt 0:00:26]} 32. Rgd7+ {[%emt 0:00:30]} 1-0

[Event "FIDE Open Sachove Univerzity QCC"]
[Site "Ceske Budejovice"]
[Date "2020.07.10"]
[Round "9.26"]
[White "Huemer, Gerald"]
[Black "Klimes, Roman"]
[Result "1/2-1/2"]
[ECO "D02"]
[WhiteElo "1721"]
[BlackElo "1349"]
[Annotator "NA RC"]
[PlyCount "48"]
[EventDate "2020.07.01"]
[EventType "swiss"]
[EventCountry "CZE"]
[TimeControl "40/5400+30:1800+30"]

1. d4 {[%emt 0:00:00]} d5 {[%emt 0:00:00]} 2. Bf4 {[%emt 0:00:14]} Nc6 {[%emt 0:01:23]} 3. Nf3 {[%emt 0:00:07]} Bg4 {[%emt 0:01:21]} 4. e3 {[%emt 0:00:04]} Nf6 {[%emt 0:01:08]} 5. Nbd2 {[%emt 0:00:31]} e6 {[%emt 0:05:19]} 6. h3 {[%emt 0:00:00]} Bf5 {[%emt 0:03:20]} 7. g4 {[%emt 0:00:00]} Be4 {[%emt 0:00:21]} 8. g5 {[%emt 0:00:19]} Nh5 {[%emt 0:04:59]} 9. Nxe4 {[%emt 0:02:51]} Nxf4 {[%emt 0:02:15]} 10. Ng3 {[%emt 0:02:18]} Ng6 {[%emt 0:02:18]} 11. h4 {[%emt 0:00:12]} h5 {[%emt 0:07:05]} 12. gxh6 {[%emt 0:01:44]} Rxh6 {[%emt 0:00:52]} 13. h5 {[%emt 0:00:38]} Nge7 {[%emt 0:01:01]} 14. c3 {[%emt 0:01:20]} Qd6 {[%emt 0:03:20]} 15. Bd3 {[%emt 0:01:19]} e5 {[%emt 0:04:56]} 16. dxe5 {[%emt 0:04:47]} Nxe5 {[%emt 0:00:25]} 17. Nd4 {[%emt 0:00:48]} g6 {[%emt 0:06:22]} 18. f4 {[%emt 0:02:40]} Nxd3+ {[%emt 0:02:30]} 19. Qxd3 {[%emt 0:00:06]} O-O-O {[%emt 0:03:09]} 20. O-O-O {[%emt 0:00:51]} Bg7 {[%emt 0:02:48]} 21. hxg6 {[%emt 0:00:39]} Rxg6 {[%emt 0:07:03]} 22. Ngf5 {[%emt 0:06:23]} Nxf5 {[%emt 0:00:47]} 23. Nxf5 {[%emt 0:01:25]} Qf6 {[%emt 0:03:20]} 24. Rdg1 {[%emt 0:04:45]} c6 {[%emt 0:08:25]} 1/2-1/2

[Event "FIDE Open Sachove Univerzity QCC"]
[Site "Ceske Budejovice"]
[Date "2020.07.09"]
[Round "9.27"]
[White "Svadlenka, Dominik"]
[Black "Jodas, Daniel"]
[Result "1-0"]
[ECO "E91"]
[WhiteElo "1350"]
[BlackElo "1608"]
[Annotator "NA"]
[PlyCount "78"]
[EventDate "2020.07.01"]
[EventType "swiss"]
[EventCountry "CZE"]
[SourceTitle "playchess.com"]
[Source "ChessBase"]
[SourceQuality "1"]
[TimeControl "40/5400+30:1800+30"]

1. d4 {[%emt 0:00:00]} Nf6 {[%emt 0:00:00]} 2. c4 {[%emt 0:00:00]} g6 {[%emt 0:01:49]} 3. Nc3 {[%emt 0:00:29]} Bg7 {[%emt 0:00:25]} 4. e4 {[%emt 0:00:27]} d6 {[%emt 0:00:47]} 5. Nf3 {[%emt 0:00:44]} O-O {[%emt 0:00:43]} 6. Be2 {[%emt 0:00:32]} c5 {[%emt 0:09:08]} 7. d5 {[%emt 0:00:39]} Bg4 {[%emt 0:07:21]} 8. O-O {[%emt 0:02:12]} e6 {[%emt 0:09:49]} 9. Nd2 {[%emt 0:04:25]} Bxe2 {[%emt 0:00:17]} 10. Qxe2 {[%emt 0:00:12]} Re8 {[%emt 0:01:26]} 11. f4 {[%emt 0:01:14]} Nbd7 {[%emt 0:04:06]} 12. Nf3 {[%emt 0:01:19]} exd5 {[%emt 0:01:13]} 13. cxd5 {[%emt 0:00:32]} Nxe4 {[%emt 0:04:18]} 14. Nxe4 {[%emt 0:00:32]} f5 {[%emt 0:00:50]} 15. Nfg5 {[%emt 0:09:34]} fxe4 {[%emt 0:02:14]} 16. Ne6 {[%emt 0:01:41]} Qb6 {[%emt 0:11:26]} 17. f5 {[%emt 0:09:36]} Bd4+ {[%emt 0:03:58]} 18. Be3 {[%emt 0:08:59]} Bxe3+ {[%emt 0:17:55]} 19. Qxe3 {[%emt 0:01:35]} c4 {[%emt 0:05:37]} 20. Qxb6 {[%emt 0:02:25]} Nxb6 {[%emt 0:00:08]} 21. Nc7 {[%emt 0:00:39]} Rac8 {[%emt 0:00:24]} 22. Nxe8 {[%emt 0:00:23]} Rxe8 {[%emt 0:00:05]} 23. fxg6 {[%emt 0:00:47]} Nxd5 {[%emt 0:11:30]} 24. gxh7+ {[%emt 0:00:54]} Kxh7 {[%emt 0:00:09]} 25. Rfd1 {[%emt 0:00:36]} Re5 {[%emt 0:00:50]} 26. Rd4 {[%emt 0:13:50]} b5 {[%emt 0:02:54]} 27. a4 {[%emt 0:19:54]} e3 {[%emt 0:03:18]} 28. axb5 {[%emt 0:02:54]} e2 {[%emt 0:00:29]} 29. Re1 {[%emt 0:01:05]} Nb4 {[%emt 0:00:46]} 30. Rd2 {[%emt 0:00:51]} d5 {[%emt 0:00:33]} 31. Rdxe2 {[%emt 0:00:57]} Rxe2 {[%emt 0:00:00]} 32. Rxe2 {[%emt 0:01:32]} d4 {[%emt 0:01:01]} 33. Rd2 {[%emt 0:00:30]} d3 {[%emt 0:00:30]} 34. Kf2 {[%emt 0:01:18]} Nd5 {[%emt 0:01:01]} 35. Kf3 {[%emt 0:14:13]} Nc7 {[%emt 0:00:30]} 36. Ke4 {[%emt 0:00:30]} Nxb5 {[%emt 0:00:30]} 37. Kd5 {[%emt 0:00:30]} c3 {[%emt 0:00:30]} 38. bxc3 {[%emt 0:00:30]} Nxc3+ {[%emt 0:00:30]} 39. Kc4 {[%emt 0:00:30]} Na4 {[%emt 0:00:30]} 1-0

[Event "FIDE Open Sachove Univerzity QCC"]
[Site "Ceske Budejovice"]
[Date "2020.07.10"]
[Round "9.28"]
[White "Martirosyan, David"]
[Black "Dobsinsky, Petr"]
[Result "1-0"]
[ECO "B12"]
[WhiteElo "1560"]
[BlackElo "1248"]
[Annotator "NA RC"]
[PlyCount "81"]
[EventDate "2020.07.01"]
[EventType "swiss"]
[EventCountry "CZE"]
[TimeControl "40/5400+30:1800+30"]

1. e4 {[%emt 0:00:00]} c6 {[%emt 0:00:00]} 2. d4 {[%emt 0:00:00]} d5 {[%emt 0:00:00]} 3. e5 {[%emt 0:00:23]} Bf5 {[%emt 0:00:08]} 4. h4 {[%emt 0:00:39]} h6 {[%emt 0:00:39]} 5. g4 {[%emt 0:00:57]} Be6 {[%emt 0:01:49]} 6. Bd3 {[%emt 0:01:58]} Qd7 {[%emt 0:01:26]} 7. f3 {[%emt 0:02:28]} f5 {[%emt 0:01:41]} 8. exf6 {[%emt 0:03:49]} Nxf6 {[%emt 0:00:39]} 9. Bg6+ {[%emt 0:01:28]} Kd8 {[%emt 0:01:18]} 10. Bf4 {[%emt 0:03:04]} Bg8 {[%emt 0:02:36]} 11. Ne2 {[%emt 0:04:46]} e6 {[%emt 0:02:31]} 12. Nbc3 {[%emt 0:03:01]} Bh7 {[%emt 0:00:56]} 13. Bxh7 {[%emt 0:02:26]} Nxh7 {[%emt 0:00:26]} 14. Qd2 {[%emt 0:03:52]} Bb4 {[%emt 0:03:15]} 15. O-O-O {[%emt 0:05:20]} Rf8 {[%emt 0:03:27]} 16. Qd3 {[%emt 0:03:50]} Nf6 {[%emt 0:04:51]} 17. a3 {[%emt 0:02:41]} Bd6 {[%emt 0:01:12]} 18. Rhe1 {[%emt 0:04:49]} Bxf4+ {[%emt 0:00:57]} 19. Nxf4 {[%emt 0:00:31]} Re8 {[%emt 0:05:37]} 20. Re5 {[%emt 0:05:48]} c5 {[%emt 0:02:24]} 21. Rde1 {[%emt 0:12:22]} cxd4 {[%emt 0:02:04]} 22. Nb5 {[%emt 0:04:17]} a6 {[%emt 0:07:46]} 23. Nxd4 {[%emt 0:01:48]} Nc6 {[%emt 0:04:50]} 24. Nxc6+ {[%emt 0:03:14]} bxc6 {[%emt 0:00:13]} 25. Rxe6 {[%emt 0:02:25]} Kc7 {[%emt 0:00:46]} 26. g5 {[%emt 0:17:41]} hxg5 {[%emt 0:01:07]} 27. hxg5 {[%emt 0:00:13]} Nh5 {[%emt 0:00:18]} 28. Rxe8 {[%emt 0:04:15]} Rxe8 {[%emt 0:01:00]} 29. Rxe8 {[%emt 0:00:51]} Qxe8 {[%emt 0:00:23]} 30. Nxh5 {[%emt 0:00:27]} Qxh5 {[%emt 0:00:46]} 31. g6 {[%emt 0:01:04]} Qh1+ {[%emt 0:02:50]} 32. Kd2 {[%emt 0:00:33]} Qh2+ {[%emt 0:02:11]} 33. Kc3 {[%emt 0:00:22]} Qe5+ {[%emt 0:00:52]} 34. Qd4 {[%emt 0:01:18]} Qxd4+ {[%emt 0:02:58]} 35. Kxd4 {[%emt 0:00:04]} Kd6 {[%emt 0:00:37]} 36. c4 {[%emt 0:01:24]} c5+ {[%emt 0:00:55]} 37. Kd3 {[%emt 0:01:30]} a5 {[%emt 0:00:20]} 38. b3 {[%emt 0:01:58]} dxc4+ {[%emt 0:00:20]} 39. Kxc4 {[%emt 0:00:08]} Kc6 {[%emt 0:01:29]} 40. f4 {[%emt 0:00:36]} Kd6 {[%emt 0:01:10]} 41. Kb5 {[%emt 0:30:54]} 1-0